[Event "Titled Tuesday Blitz March 08 Late 2022"]
[White "Andersson, Bjorn 1971"]
[Black "Hambleton, Aman"]
[WhiteFideId "1702114"]
[BlackFideId "2606577"]
[WhiteElo "2207"]
[BlackElo "2552"]
[Result "0-1"]
[Round "01"]
[TimeControl "180+1"]
[Date "2022.03.09"]
[WhiteClock "0:00:08"]
[BlackClock "0:00:09"]

1. e4 {[%clk 0:03:00]}  b6 {[%clk 0:02:52]} 2. Nc3 {[%clk 0:02:58]}  Bb7 {[%clk 0:02:46]} 3. Bd3 {[%clk 0:02:57]}  e6 {[%clk 0:02:38]} 4. Nge2 {[%clk 0:02:57]}  c5 {[%clk 0:02:17]} 5. Ng3 {[%clk 0:02:55]}  Nc6 {[%clk 0:02:10]} 6. O-O {[%clk 0:02:46]}  h5 {[%clk 0:01:58]} 7. Re1 {[%clk 0:02:39]}  h4 {[%clk 0:01:50]} 8. Nf1 {[%clk 0:02:39]}  Bd6 {[%clk 0:01:30]} 9. b3 {[%clk 0:02:35]}  a6 {[%clk 0:01:16]} 10. Bb2 {[%clk 0:02:35]}  Qg5 {[%clk 0:01:16]} 11. Ne2 {[%clk 0:02:08]}  Nf6 {[%clk 0:00:45]} 12. f4 {[%clk 0:02:00]}  Bxf4 {[%clk 0:00:44]} 13. Nxf4 {[%clk 0:01:57]}  Qxf4 {[%clk 0:00:45]} 14. Qf3 {[%clk 0:01:49]}  Qxf3 {[%clk 0:00:36]} 15. gxf3 {[%clk 0:01:50]}  Nb4 {[%clk 0:00:30]} 16. Ne3 {[%clk 0:01:38]}  Nxd3 {[%clk 0:00:17]} 17. cxd3 {[%clk 0:01:39]}  Nh5 {[%clk 0:00:17]} 18. d4 {[%clk 0:01:31]}  cxd4 {[%clk 0:00:16]} 19. Bxd4 {[%clk 0:01:30]}  b5 {[%clk 0:00:17]} 20. Rec1 {[%clk 0:01:24]}  Bc6 {[%clk 0:00:16]} 21. Ng2 {[%clk 0:01:17]}  h3 {[%clk 0:00:14]} 22. Ne3 {[%clk 0:01:16]}  Nf4 {[%clk 0:00:15]} 23. Kf1 {[%clk 0:01:12]}  f6 {[%clk 0:00:14]} 24. a4 {[%clk 0:01:03]}  Kf7 {[%clk 0:00:08]} 25. axb5 {[%clk 0:00:56]}  Bxb5+ {[%clk 0:00:08]} 26. Kf2 {[%clk 0:00:43]}  Nd3+ {[%clk 0:00:08]} 27. Kg3 {[%clk 0:00:43]}  Nxc1 {[%clk 0:00:08]} 28. Rxc1 {[%clk 0:00:43]}  Rac8 {[%clk 0:00:09]} 29. Bc3 {[%clk 0:00:43]}  Rb8 {[%clk 0:00:06]} 30. b4 {[%clk 0:00:41]}  Rbc8 {[%clk 0:00:06]} 31. Re1 {[%clk 0:00:37]}  Rh5 {[%clk 0:00:06]} 32. f4 {[%clk 0:00:34]}  Rh6 {[%clk 0:00:06]} 33. Ng4 {[%clk 0:00:32]}  Rg6 {[%clk 0:00:06]} 34. Kf3 {[%clk 0:00:31]}  Bc6 {[%clk 0:00:03]} 35. Re3 {[%clk 0:00:29]}  Rh8 {[%clk 0:00:03]} 36. Bd4 {[%clk 0:00:21]}  Rh4 {[%clk 0:00:03]} 37. Nf2 {[%clk 0:00:20]}  Rg2 {[%clk 0:00:02]} 38. Bc5 {[%clk 0:00:18]}  Rxh2 {[%clk 0:00:02]} 39. Kg3 {[%clk 0:00:18]}  Rxf2 {[%clk 0:00:03]} 40. Kxh4 {[%clk 0:00:18]}  h2 {[%clk 0:00:03]} 41. Rh3 {[%clk 0:00:18]}  Rg2 {[%clk 0:00:03]} 42. f5 {[%clk 0:00:16]}  exf5 {[%clk 0:00:03]} 43. exf5 {[%clk 0:00:16]}  Rxd2 {[%clk 0:00:03]} 44. Kg3 {[%clk 0:00:13]}  h1=Q {[%clk 0:00:03]} 45. Rxh1 {[%clk 0:00:14]}  Bxh1 {[%clk 0:00:04]} 46. Kf4 {[%clk 0:00:14]}  Rd3 {[%clk 0:00:04]} 47. Kg4 {[%clk 0:00:11]}  Bc6 {[%clk 0:00:05]} 48. Kf4 {[%clk 0:00:11]}  d6 {[%clk 0:00:05]} 49. Bb6 {[%clk 0:00:10]}  Rb3 {[%clk 0:00:05]} 50. Ba5 {[%clk 0:00:11]}  Bd7 {[%clk 0:00:04]} 51. Ke4 {[%clk 0:00:10]}  Rb1 {[%clk 0:00:04]} 52. Kd5 {[%clk 0:00:10]}  Rf1 {[%clk 0:00:04]} 53. Kxd6 {[%clk 0:00:10]}  Bxf5 {[%clk 0:00:04]} 54. Kd5 {[%clk 0:00:10]}  Bd3 {[%clk 0:00:05]} 55. Kd4 {[%clk 0:00:10]}  Bb5 {[%clk 0:00:06]} 56. Ke3 {[%clk 0:00:10]}  g5 {[%clk 0:00:07]} 57. Bc7 {[%clk 0:00:10]}  Kg6 {[%clk 0:00:08]} 58. Bd8 {[%clk 0:00:09]}  f5 {[%clk 0:00:09]} 59. Bxg5 {[%clk 0:00:08]}  Kxg5 {[%clk 0:00:10]} 60. Kd2 {[%clk 0:00:08]}  Rf4 {[%clk 0:00:09]} 61. Kc3 {[%clk 0:00:09]}  Kf6 {[%clk 0:00:09]} 62. Kd2 {[%clk 0:00:09]}  Re4 {[%clk 0:00:09]} 63. Kc3 {[%clk 0:00:09]}  Ke5 {[%clk 0:00:10]} 64. Kd2 {[%clk 0:00:09]}  Kd4 {[%clk 0:00:09]} 65. Kc2 {[%clk 0:00:08]}  Kc4 {[%clk 0:00:08]} 66. Kb2 {[%clk 0:00:08]}  Re3 {[%clk 0:00:07]} 67. Ka2 {[%clk 0:00:07]}  Rb3 {[%clk 0:00:07]} 68. Ka1 {[%clk 0:00:07]}  f4 {[%clk 0:00:08]} 69. Ka2 {[%clk 0:00:08]}  f3 {[%clk 0:00:08]} 70. Ka1 {[%clk 0:00:08]}  Rxb4 {[%clk 0:00:09]} 71. Ka2 {[%clk 0:00:08]}  a5 {[%clk 0:00:09]} 72. Ka3 {[%clk 0:00:08]}  Kc3 {[%clk 0:00:09]} 0-1


[Site "https://www.chess.com"]

[Event "Titled Tuesday Blitz March 08 Late 2022"]
[White "Babazada, Khazar"]
[Black "Song, Michael"]
[WhiteFideId "13413554"]
[BlackFideId "2613190"]
[WhiteElo "2418"]
[BlackElo "2274"]
[Result "1-0"]
[Round "01"]
[TimeControl "180+1"]
[Date "2022.03.08"]
[WhiteClock "0:00:38"]
[BlackClock "0:00:27"]

1. e4 {[%clk 0:02:56]}  e5 {[%clk 0:02:51]} 2. Nf3 {[%clk 0:02:56]}  Nc6 {[%clk 0:02:51]} 3. Bb5 {[%clk 0:02:56]}  Nf6 {[%clk 0:02:50]} 4. O-O {[%clk 0:02:56]}  Nxe4 {[%clk 0:02:50]} 5. d4 {[%clk 0:02:56]}  Nd6 {[%clk 0:02:50]} 6. Bxc6 {[%clk 0:02:54]}  dxc6 {[%clk 0:02:50]} 7. dxe5 {[%clk 0:02:55]}  Nf5 {[%clk 0:02:50]} 8. Qxd8+ {[%clk 0:02:54]}  Kxd8 {[%clk 0:02:51]} 9. Nc3 {[%clk 0:02:55]}  Bd7 {[%clk 0:02:51]} 10. h3 {[%clk 0:02:53]}  Be7 {[%clk 0:02:44]} 11. a3 {[%clk 0:02:46]}  Kc8 {[%clk 0:02:42]} 12. Ne4 {[%clk 0:02:35]}  h6 {[%clk 0:02:35]} 13. Bd2 {[%clk 0:02:24]}  Nh4 {[%clk 0:02:29]} 14. Nxh4 {[%clk 0:02:20]}  Bxh4 {[%clk 0:02:29]} 15. Nc5 {[%clk 0:02:07]}  Bf5 {[%clk 0:02:27]} 16. Bc3 {[%clk 0:02:03]}  b6 {[%clk 0:02:24]} 17. Nb3 {[%clk 0:01:55]}  Bxc2 {[%clk 0:02:21]} 18. Nd4 {[%clk 0:01:56]}  Be4 {[%clk 0:02:21]} 19. Rfe1 {[%clk 0:01:54]}  Bd5 {[%clk 0:02:18]} 20. Nf5 {[%clk 0:01:54]}  Bd8 {[%clk 0:02:15]} 21. Nxg7 {[%clk 0:01:51]}  Rg8 {[%clk 0:02:14]} 22. e6 {[%clk 0:01:51]}  fxe6 {[%clk 0:02:13]} 23. g3 {[%clk 0:01:49]}  Kd7 {[%clk 0:01:29]} 24. Rad1 {[%clk 0:01:49]}  Ke7 {[%clk 0:01:28]} 25. Nf5+ {[%clk 0:01:40]}  Kd7 {[%clk 0:01:23]} 26. Nxh6 {[%clk 0:01:40]}  Rf8 {[%clk 0:01:20]} 27. Ng4 {[%clk 0:01:32]}  c5 {[%clk 0:01:18]} 28. Ne3 {[%clk 0:01:18]}  c6 {[%clk 0:01:14]} 29. Be5 {[%clk 0:01:10]}  Be7 {[%clk 0:00:57]} 30. h4 {[%clk 0:01:07]}  Bd6 {[%clk 0:00:56]} 31. Bxd6 {[%clk 0:01:05]}  Kxd6 {[%clk 0:00:57]} 32. f4 {[%clk 0:01:05]}  b5 {[%clk 0:00:54]} 33. Kf2 {[%clk 0:01:05]}  a6 {[%clk 0:00:53]} 34. h5 {[%clk 0:01:03]}  c4 {[%clk 0:00:53]} 35. Ng4 {[%clk 0:00:59]}  a5 {[%clk 0:00:50]} 36. Ne5 {[%clk 0:00:57]}  Rf5 {[%clk 0:00:44]} 37. Ke3 {[%clk 0:00:50]}  Rxe5+ {[%clk 0:00:39]} 38. fxe5+ {[%clk 0:00:50]}  Kxe5 {[%clk 0:00:40]} 39. g4 {[%clk 0:00:46]}  Rg8 {[%clk 0:00:29]} 40. Rg1 {[%clk 0:00:41]}  Kf6 {[%clk 0:00:28]} 41. g5+ {[%clk 0:00:38]}  Rxg5 {[%clk 0:00:27]} 42. Rdf1+ {[%clk 0:00:38]} 1-0


[Site "https://www.chess.com"]

[Event "Titled Tuesday Blitz March 08 Late 2022"]
[White "Caruana, Fabiano"]
[Black "Di Nicolantonio, Lucas"]
[WhiteFideId "2020009"]
[BlackFideId "680460"]
[WhiteElo "2744"]
[BlackElo "2381"]
[Result "1-0"]
[Round "01"]
[TimeControl "180+1"]
[Date "2022.03.08"]
[WhiteClock "0:00:54"]
[BlackClock "0:00:04"]

1. d4 {[%clk 0:02:57]}  d5 {[%clk 0:02:58]} 2. Bf4 {[%clk 0:02:55]}  c5 {[%clk 0:02:57]} 3. e3 {[%clk 0:02:55]}  cxd4 {[%clk 0:02:57]} 4. exd4 {[%clk 0:02:55]}  Nc6 {[%clk 0:02:57]} 5. c3 {[%clk 0:02:56]}  Bf5 {[%clk 0:02:57]} 6. Nd2 {[%clk 0:02:53]}  e6 {[%clk 0:02:53]} 7. Qb3 {[%clk 0:02:52]}  Qd7 {[%clk 0:02:53]} 8. Ngf3 {[%clk 0:02:52]}  f6 {[%clk 0:02:53]} 9. Be2 {[%clk 0:02:51]}  g5 {[%clk 0:02:49]} 10. Bg3 {[%clk 0:02:50]}  h5 {[%clk 0:02:46]} 11. h4 {[%clk 0:02:46]}  g4 {[%clk 0:02:45]} 12. Nh2 {[%clk 0:02:47]}  Nh6 {[%clk 0:01:51]} 13. O-O {[%clk 0:02:45]}  Bd6 {[%clk 0:01:33]} 14. Rfe1 {[%clk 0:02:26]}  O-O {[%clk 0:01:31]} 15. Nhf1 {[%clk 0:02:24]}  Bg6 {[%clk 0:01:24]} 16. Qd1 {[%clk 0:02:14]}  Nf5 {[%clk 0:01:18]} 17. Nb3 {[%clk 0:02:05]}  Bxg3 {[%clk 0:01:09]} 18. Nxg3 {[%clk 0:02:04]}  Nxh4 {[%clk 0:01:08]} 19. Bd3 {[%clk 0:02:03]}  f5 {[%clk 0:00:59]} 20. Nc5 {[%clk 0:02:01]}  Qh7 {[%clk 0:00:47]} 21. Rxe6 {[%clk 0:01:45]}  f4 {[%clk 0:00:39]} 22. Bxg6 {[%clk 0:01:37]}  Nxg6 {[%clk 0:00:38]} 23. Qd3 {[%clk 0:01:34]}  Nce7 {[%clk 0:00:29]} 24. Nf1 {[%clk 0:01:32]}  f3 {[%clk 0:00:25]} 25. g3 {[%clk 0:01:30]}  Nf5 {[%clk 0:00:21]} 26. Ne3 {[%clk 0:01:22]}  Nge7 {[%clk 0:00:07]} 27. Nd7 {[%clk 0:01:22]}  Kh8 {[%clk 0:00:05]} 28. Nxf8 {[%clk 0:01:20]}  Rxf8 {[%clk 0:00:06]} 29. Re1 {[%clk 0:01:19]}  h4 {[%clk 0:00:05]} 30. gxh4 {[%clk 0:00:58]}  Qxh4 {[%clk 0:00:04]} 31. Nxf5 {[%clk 0:00:58]}  Nxf5 {[%clk 0:00:05]} 32. Re8 {[%clk 0:00:59]}  Qh3 {[%clk 0:00:03]} 33. Rxf8+ {[%clk 0:00:58]}  Kg7 {[%clk 0:00:04]} 34. Rf7+ {[%clk 0:00:55]}  Kg6 {[%clk 0:00:04]} 35. Qxf5+ {[%clk 0:00:54]} 1-0


[Site "https://www.chess.com"]

[Event "Titled Tuesday Blitz March 08 Late 2022"]
[White "Celestino, Rafael Teixeira"]
[Black "Ezat, Mohamed"]
[WhiteFideId "2108925"]
[BlackFideId "10600906"]
[WhiteElo "2260"]
[BlackElo "2386"]
[Result "1-0"]
[Round "01"]
[TimeControl "180+1"]
[Date "2022.03.09"]
[WhiteClock "0:00:08"]
[BlackClock "0:00:10"]

1. e4 {[%clk 0:03:00]}  e5 {[%clk 0:02:57]} 2. Nf3 {[%clk 0:02:59]}  Nc6 {[%clk 0:02:57]} 3. Bc4 {[%clk 0:03:00]}  Nf6 {[%clk 0:02:57]} 4. Ng5 {[%clk 0:03:00]}  d5 {[%clk 0:02:56]} 5. exd5 {[%clk 0:03:01]}  b5 {[%clk 0:02:52]} 6. Bb3 {[%clk 0:02:14]}  Nd4 {[%clk 0:02:47]} 7. O-O {[%clk 0:02:11]}  h6 {[%clk 0:02:42]} 8. Nf3 {[%clk 0:01:28]}  Bg4 {[%clk 0:02:38]} 9. Re1 {[%clk 0:01:28]}  Bxf3 {[%clk 0:02:11]} 10. Rxe5+ {[%clk 0:01:25]}  Be7 {[%clk 0:02:10]} 11. gxf3 {[%clk 0:01:22]}  O-O {[%clk 0:02:05]} 12. Nc3 {[%clk 0:01:21]}  Bd6 {[%clk 0:02:04]} 13. Re1 {[%clk 0:01:10]}  Re8 {[%clk 0:02:02]} 14. Rxe8+ {[%clk 0:01:07]}  Qxe8 {[%clk 0:02:00]} 15. d3 {[%clk 0:01:08]}  Qe5 {[%clk 0:01:58]} 16. f4 {[%clk 0:01:07]}  Qf5 {[%clk 0:01:56]} 17. Be3 {[%clk 0:01:02]}  c5 {[%clk 0:01:38]} 18. Bxd4 {[%clk 0:00:50]}  cxd4 {[%clk 0:01:32]} 19. Nxb5 {[%clk 0:00:49]}  Bxf4 {[%clk 0:01:29]} 20. Nxd4 {[%clk 0:00:42]}  Qg5+ {[%clk 0:00:37]} 21. Kh1 {[%clk 0:00:41]}  Qh4 {[%clk 0:00:34]} 22. Qg1 {[%clk 0:00:36]}  Ng4 {[%clk 0:00:32]} 23. Nf3 {[%clk 0:00:31]}  Nxf2+ {[%clk 0:00:30]} 24. Kg2 {[%clk 0:00:31]}  Qe7 {[%clk 0:00:21]} 25. Qxf2 {[%clk 0:00:21]}  a5 {[%clk 0:00:19]} 26. Re1 {[%clk 0:00:20]}  Qf6 {[%clk 0:00:19]} 27. d6 {[%clk 0:00:15]}  Bxd6 {[%clk 0:00:16]} 28. Bd5 {[%clk 0:00:11]}  Rb8 {[%clk 0:00:15]} 29. b3 {[%clk 0:00:10]}  a4 {[%clk 0:00:14]} 30. Kh1 {[%clk 0:00:09]}  Bb4 {[%clk 0:00:15]} 31. Rf1 {[%clk 0:00:08]}  Rd8 {[%clk 0:00:14]} 32. Bc4 {[%clk 0:00:07]}  Bd6 {[%clk 0:00:11]} 33. Nh4 {[%clk 0:00:07]}  Qe7 {[%clk 0:00:10]} 34. Qxf7+ {[%clk 0:00:07]}  Qxf7 {[%clk 0:00:09]} 35. Bxf7+ {[%clk 0:00:07]}  Kh8 {[%clk 0:00:10]} 36. Ng6+ {[%clk 0:00:07]}  Kh7 {[%clk 0:00:10]} 37. Bc4 {[%clk 0:00:08]}  a3 {[%clk 0:00:09]} 38. Nf4 {[%clk 0:00:07]}  Re8 {[%clk 0:00:09]} 39. Ne6 {[%clk 0:00:06]}  Re7 {[%clk 0:00:08]} 40. Nf8+ {[%clk 0:00:04]}  Kh8 {[%clk 0:00:07]} 41. Ne6 {[%clk 0:00:05]}  g5 {[%clk 0:00:05]} 42. Rf6 {[%clk 0:00:05]}  Kh7 {[%clk 0:00:05]} 43. Nxg5+ {[%clk 0:00:04]}  hxg5 {[%clk 0:00:03]} 44. Rxd6 {[%clk 0:00:05]}  Re2 {[%clk 0:00:03]} 45. Ra6 {[%clk 0:00:04]}  Re1+ {[%clk 0:00:04]} 46. Kg2 {[%clk 0:00:04]}  Re2+ {[%clk 0:00:05]} 47. Kg3 {[%clk 0:00:04]}  Rxc2 {[%clk 0:00:06]} 48. Rxa3 {[%clk 0:00:03]}  Rxc4 {[%clk 0:00:07]} 49. bxc4 {[%clk 0:00:01]}  g4 {[%clk 0:00:08]} 50. c5 {[%clk 0:00:02]}  Kg6 {[%clk 0:00:09]} 51. c6 {[%clk 0:00:03]}  Kh5 {[%clk 0:00:09]} 52. c7 {[%clk 0:00:04]}  Kg5 {[%clk 0:00:10]} 53. c8=Q {[%clk 0:00:05]}  Kh5 {[%clk 0:00:10]} 54. Qc5+ {[%clk 0:00:05]}  Kh6 {[%clk 0:00:11]} 55. Ra6+ {[%clk 0:00:06]}  Kg7 {[%clk 0:00:11]} 56. Qc7+ {[%clk 0:00:07]}  Kf8 {[%clk 0:00:10]} 57. Ra8# {[%clk 0:00:08]} 1-0


[Site "https://www.chess.com"]

[Event "Titled Tuesday Blitz March 08 Late 2022"]
[White "Chernomordik, Pavel"]
[Black "Vakhlamov, Igor L."]
[WhiteFideId "2804530"]
[BlackFideId "24126748"]
[WhiteElo "2249"]
[BlackElo "2401"]
[Result "1-0"]
[Round "01"]
[TimeControl "180+1"]
[Date "2022.03.08"]
[WhiteClock "0:00:08"]
[BlackClock "0:00:03"]

1. e4 {[%clk 0:03:00]}  c5 {[%clk 0:02:59]} 2. Nc3 {[%clk 0:02:59]}  Nc6 {[%clk 0:02:58]} 3. Bb5 {[%clk 0:02:58]}  Nd4 {[%clk 0:02:58]} 4. Bc4 {[%clk 0:02:58]}  e6 {[%clk 0:02:58]} 5. Nge2 {[%clk 0:02:58]}  Nf6 {[%clk 0:02:58]} 6. O-O {[%clk 0:02:58]}  Nc6 {[%clk 0:02:54]} 7. Bb5 {[%clk 0:02:53]}  Qc7 {[%clk 0:02:49]} 8. f4 {[%clk 0:02:38]}  d6 {[%clk 0:02:19]} 9. Ng3 {[%clk 0:02:33]}  Bd7 {[%clk 0:02:18]} 10. f5 {[%clk 0:02:20]}  Be7 {[%clk 0:02:14]} 11. d3 {[%clk 0:02:18]}  a6 {[%clk 0:02:13]} 12. Bxc6 {[%clk 0:02:11]}  Bxc6 {[%clk 0:02:14]} 13. fxe6 {[%clk 0:02:10]}  fxe6 {[%clk 0:02:11]} 14. Nh5 {[%clk 0:02:07]}  Nxh5 {[%clk 0:01:24]} 15. Qxh5+ {[%clk 0:02:05]}  g6 {[%clk 0:01:24]} 16. Qg4 {[%clk 0:02:01]}  Qd7 {[%clk 0:01:23]} 17. Bh6 {[%clk 0:01:58]}  O-O-O {[%clk 0:00:59]} 18. Rf7 {[%clk 0:01:57]}  e5 {[%clk 0:00:59]} 19. Qf3 {[%clk 0:01:45]}  Rde8 {[%clk 0:00:51]} 20. Nd5 {[%clk 0:01:40]}  Bxd5 {[%clk 0:00:45]} 21. exd5 {[%clk 0:01:39]}  Qd8 {[%clk 0:00:46]} 22. Qg4+ {[%clk 0:01:33]}  Kb8 {[%clk 0:00:46]} 23. Raf1 {[%clk 0:01:25]}  Ka8 {[%clk 0:00:34]} 24. Kh1 {[%clk 0:01:18]}  Bf8 {[%clk 0:00:19]} 25. Bg5 {[%clk 0:01:08]}  Be7 {[%clk 0:00:19]} 26. Bh6 {[%clk 0:00:53]}  Bf8 {[%clk 0:00:19]} 27. Be3 {[%clk 0:00:52]}  Be7 {[%clk 0:00:18]} 28. b4 {[%clk 0:00:45]}  cxb4 {[%clk 0:00:16]} 29. Qxb4 {[%clk 0:00:42]}  Rhf8 {[%clk 0:00:16]} 30. Rb1 {[%clk 0:00:26]}  Qc8 {[%clk 0:00:13]} 31. Rxh7 {[%clk 0:00:24]}  Rh8 {[%clk 0:00:08]} 32. Rf7 {[%clk 0:00:19]}  Rhf8 {[%clk 0:00:06]} 33. Qb6 {[%clk 0:00:16]}  Qb8 {[%clk 0:00:06]} 34. Rh7 {[%clk 0:00:14]}  Rh8 {[%clk 0:00:05]} 35. Rg7 {[%clk 0:00:14]}  Rhg8 {[%clk 0:00:05]} 36. Rxg8 {[%clk 0:00:14]}  Rxg8 {[%clk 0:00:06]} 37. h3 {[%clk 0:00:12]}  Bd8 {[%clk 0:00:06]} 38. Qb4 {[%clk 0:00:10]}  Qc7 {[%clk 0:00:05]} 39. Rb3 {[%clk 0:00:09]}  Qxc2 {[%clk 0:00:03]} 40. Qxb7# {[%clk 0:00:08]} 1-0


[Site "https://www.chess.com"]

[Event "Titled Tuesday Blitz March 08 Late 2022"]
[White "Csonka, Balazs"]
[Black "Xie, Bryan"]
[WhiteFideId "742910"]
[BlackFideId "30941296"]
[WhiteElo "2404"]
[BlackElo "1899"]
[Result "1-0"]
[Round "01"]
[TimeControl "180+1"]
[Date "2022.03.09"]
[WhiteClock "0:00:10"]
[BlackClock "0:00:14"]

1. e4 {[%clk 0:03:00]}  c5 {[%clk 0:02:58]} 2. Nf3 {[%clk 0:03:00]}  e6 {[%clk 0:02:58]} 3. b3 {[%clk 0:02:58]}  Nf6 {[%clk 0:02:53]} 4. e5 {[%clk 0:02:57]}  Nd5 {[%clk 0:02:53]} 5. Bb2 {[%clk 0:02:52]}  Nc6 {[%clk 0:02:52]} 6. c4 {[%clk 0:02:46]}  Nde7 {[%clk 0:02:52]} 7. Na3 {[%clk 0:02:42]}  Nf5 {[%clk 0:02:47]} 8. Bd3 {[%clk 0:02:28]}  Nfd4 {[%clk 0:02:46]} 9. Nc2 {[%clk 0:02:23]}  Qc7 {[%clk 0:02:36]} 10. Ncxd4 {[%clk 0:02:03]}  cxd4 {[%clk 0:02:36]} 11. Qe2 {[%clk 0:02:03]}  Bc5 {[%clk 0:02:24]} 12. O-O {[%clk 0:01:47]}  b6 {[%clk 0:02:07]} 13. Be4 {[%clk 0:00:47]}  Bb7 {[%clk 0:02:01]} 14. d3 {[%clk 0:00:47]}  Rb8 {[%clk 0:01:51]} 15. a3 {[%clk 0:00:41]}  a5 {[%clk 0:01:44]} 16. Rfb1 {[%clk 0:00:38]}  Nxe5 {[%clk 0:01:44]} 17. Bxb7 {[%clk 0:00:36]}  Ng4 {[%clk 0:01:37]} 18. Ba6 {[%clk 0:00:31]}  h5 {[%clk 0:01:32]} 19. h3 {[%clk 0:00:26]}  Qf4 {[%clk 0:01:26]} 20. Bc1 {[%clk 0:00:22]}  Qf5 {[%clk 0:01:22]} 21. b4 {[%clk 0:00:15]}  axb4 {[%clk 0:01:21]} 22. axb4 {[%clk 0:00:16]}  Bd6 {[%clk 0:01:22]} 23. Bb5 {[%clk 0:00:14]}  Nf6 {[%clk 0:01:08]} 24. Bg5 {[%clk 0:00:12]}  Nh7 {[%clk 0:01:04]} 25. Bc1 {[%clk 0:00:12]}  Nf6 {[%clk 0:01:01]} 26. Nxd4 {[%clk 0:00:09]}  Qg6 {[%clk 0:00:58]} 27. Nf3 {[%clk 0:00:09]}  Qf5 {[%clk 0:00:50]} 28. Bb2 {[%clk 0:00:07]}  Rh6 {[%clk 0:00:47]} 29. Be5 {[%clk 0:00:08]}  Rg6 {[%clk 0:00:41]} 30. Bxd6 {[%clk 0:00:07]}  Qxh3 {[%clk 0:00:41]} 31. Ne1 {[%clk 0:00:05]}  Rd8 {[%clk 0:00:36]} 32. Qf3 {[%clk 0:00:05]}  Qh4 {[%clk 0:00:35]} 33. Ra7 {[%clk 0:00:05]}  Qd4 {[%clk 0:00:31]} 34. Bg3 {[%clk 0:00:04]}  h4 {[%clk 0:00:31]} 35. Qf4 {[%clk 0:00:04]}  Qc3 {[%clk 0:00:26]} 36. Qxh4 {[%clk 0:00:04]}  Ke7 {[%clk 0:00:22]} 37. Qf4 {[%clk 0:00:04]}  Ne8 {[%clk 0:00:18]} 38. Nf3 {[%clk 0:00:03]}  f6 {[%clk 0:00:18]} 39. Qe3 {[%clk 0:00:03]}  Qc2 {[%clk 0:00:16]} 40. Re1 {[%clk 0:00:03]}  Kf8 {[%clk 0:00:15]} 41. Rxd7 {[%clk 0:00:04]}  Rxd7 {[%clk 0:00:14]} 42. Bxd7 {[%clk 0:00:04]}  f5 {[%clk 0:00:14]} 43. Bxe8 {[%clk 0:00:04]}  Kxe8 {[%clk 0:00:14]} 44. Qxb6 {[%clk 0:00:04]}  Qxd3 {[%clk 0:00:13]} 45. Rxe6+ {[%clk 0:00:05]}  Rxe6 {[%clk 0:00:13]} 46. Qxe6+ {[%clk 0:00:06]}  Kd8 {[%clk 0:00:13]} 47. Qd5+ {[%clk 0:00:06]}  Qxd5 {[%clk 0:00:13]} 48. cxd5 {[%clk 0:00:07]}  Kd7 {[%clk 0:00:13]} 49. Be5 {[%clk 0:00:08]}  Ke7 {[%clk 0:00:14]} 50. Nh4 {[%clk 0:00:08]}  g6 {[%clk 0:00:14]} 51. Nxg6+ {[%clk 0:00:09]}  Kf7 {[%clk 0:00:14]} 52. Nh4 {[%clk 0:00:10]}  Ke7 {[%clk 0:00:14]} 53. Nxf5+ {[%clk 0:00:10]} 1-0


[Site "https://www.chess.com"]

[Event "Titled Tuesday Blitz March 08 Late 2022"]
[White "Denishev, Marat"]
[Black "Gerbelli Neto, Eduardo"]
[WhiteFideId "24131563"]
[BlackFideId "2103281"]
[WhiteElo "2197"]
[BlackElo "2178"]
[Result "1-0"]
[Round "01"]
[TimeControl "180+1"]
[Date "2022.03.09"]
[WhiteClock "0:01:04"]
[BlackClock "0:00:35"]

1. d4 {[%clk 0:03:00]}  d5 {[%clk 0:02:56]} 2. c4 {[%clk 0:03:01]}  c6 {[%clk 0:02:56]} 3. Nf3 {[%clk 0:03:01]}  Nf6 {[%clk 0:02:56]} 4. Nc3 {[%clk 0:03:01]}  dxc4 {[%clk 0:02:55]} 5. a4 {[%clk 0:03:00]}  Bf5 {[%clk 0:02:55]} 6. Ne5 {[%clk 0:03:00]}  e6 {[%clk 0:02:54]} 7. Nxc4 {[%clk 0:03:00]}  Bb4 {[%clk 0:02:44]} 8. e3 {[%clk 0:02:56]}  Nbd7 {[%clk 0:02:43]} 9. Bd3 {[%clk 0:02:56]}  Bg6 {[%clk 0:02:42]} 10. O-O {[%clk 0:02:55]}  O-O {[%clk 0:02:42]} 11. Qe2 {[%clk 0:02:47]}  Qe7 {[%clk 0:02:36]} 12. e4 {[%clk 0:02:44]}  e5 {[%clk 0:02:37]} 13. dxe5 {[%clk 0:02:38]}  Nxe5 {[%clk 0:02:35]} 14. Nxe5 {[%clk 0:02:39]}  Qxe5 {[%clk 0:02:35]} 15. f4 {[%clk 0:02:39]}  Qe7 {[%clk 0:02:24]} 16. e5 {[%clk 0:02:30]}  Bxd3 {[%clk 0:02:00]} 17. Qxd3 {[%clk 0:02:31]}  Bxc3 {[%clk 0:01:46]} 18. bxc3 {[%clk 0:02:23]}  Qc5+ {[%clk 0:01:41]} 19. Kh1 {[%clk 0:02:06]}  Rfd8 {[%clk 0:01:35]} 20. Qf3 {[%clk 0:02:02]}  Nd5 {[%clk 0:01:29]} 21. Bd2 {[%clk 0:01:55]}  Nb6 {[%clk 0:01:20]} 22. Be1 {[%clk 0:01:51]}  Nc4 {[%clk 0:01:14]} 23. Bh4 {[%clk 0:01:42]}  Rd2 {[%clk 0:01:06]} 24. Rae1 {[%clk 0:01:31]}  Re8 {[%clk 0:00:58]} 25. h3 {[%clk 0:01:26]}  Qd5 {[%clk 0:00:57]} 26. Qg4 {[%clk 0:01:22]}  h5 {[%clk 0:00:44]} 27. Qg5 {[%clk 0:01:18]}  g6 {[%clk 0:00:41]} 28. f5 {[%clk 0:01:14]}  Rxe5 {[%clk 0:00:39]} 29. Rxe5 {[%clk 0:01:07]}  Qxe5 {[%clk 0:00:39]} 30. fxg6 {[%clk 0:01:04]}  Qxg5 {[%clk 0:00:39]} 31. gxf7+ {[%clk 0:01:05]}  Kf8 {[%clk 0:00:38]} 32. Bxg5 {[%clk 0:01:06]}  Rd6 {[%clk 0:00:35]} 33. Be7+ {[%clk 0:01:04]} 1-0


[Site "https://www.chess.com"]